Cogmind - Beta 14 @@@ ROGUE MODE // 2024.08.22 @ 21:16:04 Player: cabin Result: Destroyed by G-47 Trooper with Particle Gun Performance ------------- Evolutions (2) 1000 Regions Visited (5) 1000 Robots Destroyed (11) 55 Value Destroyed (292) 292 Prototype IDs (0) 0 Alien Tech Used (0) 0 Bonus (0) 0 TOTAL SCORE: 2347 Bonus ------- None Cogmind --------- Core Integrity 0/550 Matter 300/300 Energy 99/100 System Corruption 0% Temperature Cool (9) Movement Core (100) Ox1 Location -8/Materials Parts ------- > --- POWER (2) -------- (None) > --- PROPULSION (2) --- (None) > --- UTILITY (3) ------ Transport Network Coupler High-powered Tractor Beam > --- WEAPON (4) ------- Heavy Flail > --- INVENTORY (5) ---- Coolant Injector Small Storage Unit Seismic Detector EM Pulse Gun Peak State ------------ > --- POWER ------------ Light Ion Engine Improved Deuterium Engine > --- PROPULSION ------- Wheel Wheel > --- UTILITY ---------- Transport Network Coupler Improved Power Shielding Reactive Plating > --- WEAPON ----------- EM Pulse Gun Beam Rifle Assault Rifle Katana > --- INVENTORY -------- Coolant Injector Small Storage Unit Seismic Detector EM Pulse Gun [Rating: 21] Favorites ----------- Power Light Ion Engine Engine Light Ion Engine Propulsion Wheel Wheel Wheel Utility Seismic Detector Device Seismic Detector Storage Small Storage Unit Processor Transport Network Coupler Protection Improved Power Shielding Weapon Assault Rifle Energy Gun EM Pulse Gun Ballistic Gun Assault Rifle Impact Weapon Hammer Slashing Weapon Katana Build | -11 -10 -10 -10 -9 -8 ------- Run | Yrd Mat Min Exi Min Mat Slots Evolved 4 | . . . . . 4 Power 1 | . . . . . 1 Propulsion . | . . . . . . Utility 1 | . . . . . 1 Weapon 2 | . . . . . 2 Parts Attached 29 | 6 7 1 3 1 11 Power 6 | 1 2 . 1 . 2 Engine 6 | 1 2 . 1 . 2 Core . | . . . . . . Reactor . | . . . . . . Propulsion 3 | 2 . . . . 1 Treads . | . . . . . . Leg . | . . . . . . Wheel 3 | 2 . . . . 1 Hover . | . . . . . . Flight . | . . . . . . Utility 9 | 1 2 . 1 1 4 Device 3 | . 1 . . . 2 Storage 3 | 1 1 . 1 . . Processor 1 | . . . . 1 . Hackware . | . . . . . . Protection 2 | . . . . . 2 Artifact . | . . . . . . Weapon 11 | 2 3 1 1 . 4 Energy Gun 5 | 1 1 . 1 . 2 Energy Cannon . | . . . . . . Ballistic Gun 2 | 1 . 1 . . . Ballistic Cannon . | . . . . . . Launcher . | . . . . . . Special Weapon . | . . . . . . Impact Weapon 3 | . 2 . . . 1 Slashing Weapon 1 | . . . . . 1 Piercing Weapon . | . . . . . . Special Melee Weapon . | . . . . . . Unidentified Prototypes . | . . . . . . Parts Lost 10 | . . . . . 10 Power 2 | . . . . . 2 Propulsion 2 | . . . . . 2 Utility 2 | . . . . . 2 Weapon 4 | . . . . . 4 Highest Loss Streak 10 | . . . . . 10 To Critical Strikes . | . . . . . . Average Slot Usage (%) 87 | . 86 77 95 100 74 Engine 13 | . 14 14 14 14 12 Wheel 23 | . 28 28 28 28 13 Device 10 | . 6 14 14 14 5 Storage 5 | . 14 . 9 4 . Processor 4 | . . . . 9 9 Protection 2 | . . . . . 7 Energy Gun 7 | . 6 . 1 14 13 Ballistic Gun 10 | . 6 6 14 14 7 Impact Weapon 6 | . 9 14 12 . . Slashing Weapon 1 | . . . . . 4 Peak Build Rating 21 | 6 7 6 7 7 21 Average Rating 8 | 4 5 5 6 7 13 On Entrance 5 | . 6 5 6 7 7 Naked Turns . | . . . . . . Heaviest Build 34 | 12 15 8 13 13 34 Greatest Support 20 | 20 20 20 20 20 20 Greatest Overweight (x) 3 | . . . . . 3 Average Overweight (x) . | . . . . . . Largest Inventory Capacity 8 | 8 8 5 8 8 5 Average Capacity 5 | 6 5 5 6 5 5 Most Carried 5 | . 5 5 5 5 4 Average Carried 3 | . 2 4 4 4 2 Final Capacity 8 | 8 5 5 8 5 5 Final Carried 5 | . 5 4 4 3 4 Class Distribution -------------------- 78% | Mutant 16% | Tank 5% | Skirmisher Dominant Class ---------------- Mutant | -10/Materials Mutant | -10/Mines Mutant | -10/Exiles Mutant | -9/Mines Tank | -8/Materials Resources | -11 -10 -10 -10 -9 -8 ----------- Run | Yrd Mat Min Exi Min Mat Matter Collected 541 | 260 . . 80 55 146 Remotely 20 | . . . . . 20 Salvage Created 431 | . . . . 44 387 Parts 25 | . . . . 6 19 Haulers Intercepted . | . . . . . . Recyclers Shooed . | . . . . . . Parts Field Recycled . | . . . . . . Retrieved Matter . | . . . . . . Parts Self-Destructed . | . . . . . . Prevented . | . . . . . . Kills | -11 -10 -10 -10 -9 -8 ------- Run | Yrd Mat Min Exi Min Mat Combat Hostiles Destroyed 10 | . . . . 3 7 Melee 3 | . . . . . 3 Guns 6 | . . . . 3 3 Classes Destroyed 4 | . . . . 1 3 Recycler 1 | . . . . . 1 Swarmer 5 | . . . . 3 2 Grunt 4 | . . . . . 4 Sentry 1 | . . . . . 1 Best Kill Streak 3 | . . . . 3 3 Combat Bots Only 3 | . . . . 3 3 Max Kills in Single Turn 2 | . . . . 2 1 Gunslinging 1 | . . . . 1 . Exploded . | . . . . . . Melee 1 | . . . . . 1 Uniques/NPCs Destroyed . | . . . . . . Combat | -11 -10 -10 -10 -9 -8 -------- Run | Yrd Mat Min Exi Min Mat Hostile Shots Fired 149 | . . . . 15 134 Missed 39 | . . . . 8 31 Damage Taken 1458 | . . . . 55 1403 Core 572 | . . . . 7 565 Absorbed by Shields . | . . . . . . Redirected to Shielding 104 | . . . . . 104 Ignored by Resistances 22 | . . . . . 22 Core Remaining (%) 98 | 100 . . . 97 . Volleys Fired 18 | . . . . 5 13 Largest 3 | . . . . 2 3 Hottest 116 | . . . . 60 116 Shots Fired 49 | . . . . 10 39 Gun 49 | . . . . 10 39 Cannon . | . . . . . . Launcher . | . . . . . . Special . | . . . . . . Kinetic 18 | . . . . 5 13 Thermal 7 | . . . . . 7 Explosive . | . . . . . . Electromagnetic 24 | . . . . 5 19 Robot Hit Streak 6 | . . . . 5 6 Robot Miss Streak 8 | . . . . 1 8 Penetration Max . | . . . . . . Secondary Targets 1 | . . . . 1 . Max Gunslinging Chain 1 | . . . . 1 . Shots Hit Robots 33 | . . 2 . 7 24 Core Hits 14 | . . . . 3 11 Critical Kills 1 | . . . . . 1 Critical Parts Destroyed 1 | . . . . . 1 Critical Strikes 3 | . . . . . 3 Burn 1 | . . . . . 1 Smash 2 | . . . . . 2 Melee Attacks 13 | . . 2 . . 11 Impact 10 | . . 2 . . 8 Slashing 3 | . . . . . 3 Piercing . | . . . . . . Sneak Attacks 3 | . . 2 . . 1 Combat Hostiles . | . . . . . . Follow-up Attacks . | . . . . . . Damage Inflicted 781 | . . 67 . 98 616 Guns 341 | . . . . 98 243 Cannons . | . . . . . . Explosions . | . . . . . . Melee 426 | . . 67 . . 359 Ramming 14 | . . . . . 14 Kinetic 129 | . . . . 63 66 Thermal 72 | . . . . . 72 Explosive . | . . . . . . Electromagnetic 140 | . . . . 35 105 Impact 335 | . . 67 . . 268 Slashing 91 | . . . . . 91 Piercing . | . . . . . . Highest Corruption . | . . . . . . Average Corruption . | . . . . . . Corruption Purged . | . . . . . . Corruption Blocked . | . . . . . . Overload Shots . | . . . . . . Overflow Damage 102 | . . 14 . . 88 Projectiles . | . . . . . . Explosions . | . . . . . . Melee 102 | . . 14 . . 88 Knockbacks 1 | . . 1 . . . Impact 1 | . . 1 . . . Kinetic . | . . . . . . Secondary . | . . . . . . Self-Inflicted Damage 4 | . . . . . 4 Shots . | . . . . . . Rammed 9 | . . . . . 9 Targets Rammed 9 | . . . . . 9 Kicked . | . . . . . . Crushed . | . . . . . . Highest Temperature 427 | . . . . 20 427 Average Temperature 149 | . . . . 20 157 Received Heat Transfer 747 | . . . . . 747 Effects 3 | . . . . . 3 Shutdowns 1 | . . . . . 1 Interference 2 | . . . . . 2 Siege Activations . | . . . . . . Robots Corrupted 1 | . . . . . 1 Combat Hostiles 1 | . . . . . 1 Parts Fried . | . . . . . . Impact Corruptions 6 | . . 1 . . 5 Robots Melted . | . . . . . . Combat Hostiles . | . . . . . . Parts Melted . | . . . . . . Heat Transferred 259 | . . . . . 259 Parts Sabotaged . | . . . . . . Parts Stolen . | . . . . . . Parts Stripped . | . . . . . . Power Chain Reactions . | . . . . . . Alert | -11 -10 -10 -10 -9 -8 ------- Run | Yrd Mat Min Exi Min Mat Peak Influence 284 | . 6 1 . 70 284 Initial 27 | . . 1 . . 27 Average 62 | . 3 1 . 9 141 Maximum Alert Level 1 | . . . . . 1 Low Security (%) 89 | 100 100 100 . 100 75 Level 1 10 | . . . . . 24 Level 2 . | . . . . . . Level 3 . | . . . . . . Level 4 . | . . . . . . Level 5 . | . . . . . . High Security . | . . . . . . Max Security . | . . . . . . Squads Dispatched 5 | . 1 . . . 4 Investigation 4 | . 1 . . . 3 Extermination . | . . . . . . Reinforcement 1 | . . . . . 1 Assault . | . . . . . . Garrison . | . . . . . . Intercept . | . . . . . . Searches Triggered . | . . . . . . Construction Impeded . | . . . . . . Haulers Reinforced . | . . . . . . Active Scanning Responses . | . . . . . . Cargo Convoy Interrupts . | . . . . . . Stealth | -11 -10 -10 -10 -9 -8 --------- Run | Yrd Mat Min Exi Min Mat Distress Signals 4 | . . . . . 4 Communications Jammed . | . . . . . . Distress Signals . | . . . . . . Times Spotted 37 | . 1 . . 3 33 Peak Tracking Total 16 | . 2 . . 3 16 Tactical Retreats 3 | . . . . . 3 Traps | -11 -10 -10 -10 -9 -8 ------- Run | Yrd Mat Min Exi Min Mat Traps Triggered 1 | . . . . . 1 Indirectly . | . . . . . . Trap Hack Attempts . | . . . . . . Triggered . | . . . . . . Disarmed . | . . . . . . Reprogrammed . | . . . . . . Reused . | . . . . . . Traps Extracted . | . . . . . . Installed . | . . . . . . Triggered . | . . . . . . Machines | -11 -10 -10 -10 -9 -8 ---------- Run | Yrd Mat Min Exi Min Mat Machines Disabled . | . . . . . . Max in Single Turn . | . . . . . . Machines Repaired . | . . . . . . Machines Dismantled . | . . . . . . Machines Sabotaged . | . . . . . . Overloaded Fab Kills . | . . . . . . Hacking | -11 -10 -10 -10 -9 -8 --------- Run | Yrd Mat Min Exi Min Mat Machines Accessed 5 | . 2 . 1 . 2 Terminals 4 | . 2 . . . 2 Fabricators . | . . . . . . Repair Stations . | . . . . . . Recycling Units . | . . . . . . Scanalyzers . | . . . . . . Garrison Access . | . . . . . . Total Hacks 9 | . 2 . 2 . 5 Successful 6 | . 2 . 2 . 2 Failed 3 | . . . . . 3 Catastrophic 2 | . . . . . 2 Database Lockouts . | . . . . . . Manual . | . . . . . . Terminals 7 | . 2 . . . 5 Fabricators . | . . . . . . Repair Stations . | . . . . . . Recycling Units . | . . . . . . Scanalyzers . | . . . . . . Garrison Access . | . . . . . . Terminal Hacks 6 | . 2 . 2 . 2 Record 3 | . 1 . 2 . . Branch Access Points 1 | . . . . . 1 Locate Traps 1 | . 1 . . . . Zone Layout 1 | . . . . . 1 Fabricator Hacks . | . . . . . . Repair Station Hacks . | . . . . . . Recycling Unit Hacks . | . . . . . . Scanalyzer . | . . . . . . Garrison Access Hacks . | . . . . . . Unauthorized Hacks . | . . . . . . Terminals . | . . . . . . Fabricators . | . . . . . . Repair Stations . | . . . . . . Recycling Units . | . . . . . . Scanalyzers . | . . . . . . Garrison Access . | . . . . . . Data Cores Recovered . | . . . . . . Used . | . . . . . . Hacking Detections 2 | . . . . . 2 Full Trace Events 2 | . . . . . 2 Feedback Events . | . . . . . . Feedback Blocked . | . . . . . . Robot Schematics Acquired . | . . . . . . Robots Built . | . . . . . . Authchips . | . . . . . . Time . | . . . . . . Total Robot Build Rating . | . . . . . . Part Schematics Acquired . | . . . . . . Parts Built . | . . . . . . Authchips . | . . . . . . Time . | . . . . . . Total Part Build Rating . | . . . . . . Parts Repaired . | . . . . . . Time . | . . . . . . Parts Recycled . | . . . . . . Recycled Matter . | . . . . . . Retrieved Matter . | . . . . . . Retrieved Components . | . . . . . . Parts Scanalyzed . | . . . . . . Part Schematics Acquired . | . . . . . . Parts Damaged . | . . . . . . Bothacking | -11 -10 -10 -10 -9 -8 ------------ Run | Yrd Mat Min Exi Min Mat Used RIF Installer . | . . . . . . Robots Hacked . | . . . . . . Non-combat . | . . . . . . Combat . | . . . . . . Robot Hacks Applied . | . . . . . . Relay Couplers Released . | . . . . . . Fabnet Peak Effective % . | . . . . . . Robots Rewired . | . . . . . . Allies Hacked . | . . . . . . Hacks Repelled . | . . . . . . Allies | -11 -10 -10 -10 -9 -8 -------- Run | Yrd Mat Min Exi Min Mat Total Allies . | . . . . . . Largest Group . | . . . . . . Highest-Rated Group . | . . . . . . Highest-Rated Ally . | . . . . . . Total Orders . | . . . . . . Ally Attacks . | . . . . . . Total Damage . | . . . . . . Kills . | . . . . . . Allies Corrupted . | . . . . . . Allies Melted . | . . . . . . Intel | -11 -10 -10 -10 -9 -8 ------- Run | Yrd Mat Min Exi Min Mat Robot Analysis Total . | . . . . . . Derelict Logs Recovered 1 | . . . . 1 . Drone Launches . | . . . . . . Drone Recoveries . | . . . . . . Exploration | -11 -10 -10 -10 -9 -8 ------------- Run | Yrd Mat Min Exi Min Mat Turns Passed 1468 | 109 154 67 483 242 413 Spaces Moved 1630 | 127 176 76 590 280 381 Core 118 | 5 . . . . 113 Treads . | . . . . . . Legs . | . . . . . . Wheels 1512 | 122 176 76 590 280 268 Hover . | . . . . . . Flight . | . . . . . . Fastest Speed 50 | 50 80 80 80 80 50 Average Speed 80 | 78 80 80 80 80 80 Slowest Speed 125 | 80 80 80 80 80 125 Overloaded Moves . | . . . . . . Propulsion Burnouts . | . . . . . . Robots Hopped . | . . . . . . Cave-ins Triggered . | . . . . . . Exploration Rate (%) 33 | 4 26 13 76 58 22 Regions Visited 5 Branch Regions 3 Pre-discovered Areas 2 | . . . 1 1 . Known Exits Taken . | . . . . . . Unknown Exits Taken 5 | 1 1 1 1 1 . Scrap Searched 1 | . . . . 1 . Spaces Dug . | . . . . . . Terrain Destroyed . | . . . . . . Melee . | . . . . . . Projectile . | . . . . . . AOE . | . . . . . . Terrain Rammed . | . . . . . . Walls Destroyed . | . . . . . . Machines Disabled . | . . . . . . Actions | -11 -10 -10 -10 -9 -8 --------- Run | Yrd Mat Min Exi Min Mat Total 1723 | 132 190 78 601 288 434 Wait 2 | . . . . . 2 Move 1625 | 126 175 75 589 279 381 Hop . | . . . . . . Pick Up . | . . . . . . Fast Attach 22 | 6 5 . 1 1 9 Attach 7 | . 2 1 2 . 2 Detach 15 | . 7 . 2 1 5 Swap . | . . . . . . Drop 5 | . 1 . . 2 2 Fire 18 | . . . . 5 13 Melee 13 | . . 2 . . 11 Ram 9 | . . . . . 9 Kick . | . . . . . . Crush . | . . . . . . Escape Stasis . | . . . . . . Rewire 7 | . . . 7 . . Trap . | . . . . . . Miscellaneous . | . . . . . . Route ------- -11/Scrapyard -10/Materials -10/Mines (discovered 2 exits: [*Mat] / *Exi) -10/Exiles -9/Mines -8/Materials History --------- Turn | Location | Event 30 | -11/Scrapyard | Discovered new exit (range 14) 110 | -11/Scrapyard | Entered Materials 242 | -10/Materials | Discovered new exit (range 15) 250 | -10/Materials | Met 8R-AWN 264 | -10/Materials | Entered Mines 299 | -10/Mines | Discovered new exit (range 11) 322 | -10/Mines | Build established: Mutant 325 | -10/Mines | Deemed a non-threat by the Exiles lab entrance 326 | -10/Mines | Discovered new exit (range 5) 331 | -10/Mines | Entered Exiles 374 | -10/Exiles | Welcomed by 8R-AWN 402 | -10/Exiles | Met EX-HEX 538 | -10/Exiles | Met EX-DEC 584 | -10/Exiles | Visited The Gauntlet 715 | -10/Exiles | Learned location of Zion (-7) 777 | -10/Exiles | Discovered new exit (range 15) 814 | -10/Exiles | Entered Mines 917 | -9/Mines | Received a Rocket Launcher from a helpful Derelict 1011 | -9/Mines | Discovered new exit (range 16) 1056 | -9/Mines | Entered Materials 1056 | -8/Materials | Evolved 4 slots: Power x1, Utility x1, Weapon x2 1385 | -8/Materials | Core integrity fell below 50% 1412 | -8/Materials | Lost 10 parts (2p2n2u4w) 1453 | -8/Materials | Core integrity fell below 20% 1469 | -8/Materials | Destroyed by G-47 Trooper with Particle Gun Last Messages --------------- Acquired Hvy. Flail. Destroyed Lgt. Ion Engine. S-10 Pest system corrupted by crushing effect. Destroyed Flight Unit. S-10 Pest system corrupted by crushing effect. S-10 Pest destroyed. Acquired 13 matter. G-50 Soldier suffers critical hit (Smash). Destroyed Lgt. Angular Momentum Engine. G-50 Soldier system corrupted by crushing effect. G-50 Soldier system terminally corrupted. [Achievement: Power Corrupts] Acquired 7 matter. Destroyed Lgt. Nuclear Core. G-47 Trooper system corrupted by crushing effect. G-47 Trooper suffers critical hit (Smash). G-47 Trooper destroyed. Map ----- +----------------------------------------------------+ | ?????????????# #????????? | | ?????????????# #????????? | | ?????????????# ##############+### #????????? | | ?????????????# #???## ## ####????????? | | ?????????????# #???# ## #???????????? | | ?????????????# #???# ## #???????????? | | ?????????????# #???# ## #???????????? | | ?????????????# #???# ## ## #???????????? | | ????????????## ##??####?########## #???????????? | | ????????????# ############## #???????????? | | ????????????# #???????????? | | ????????????# T #???????????? | | ????????????# #???????????? | | ????????????# ####### # #???????????? | | ??????????#####+#####???# ## ##???????????? | | ??????????# #???#!!! *## #????????????? | | ??????????#! """ #???#!!!!**## #????????????? | | ??????????# """ #???######### #????????????? | | ??????????# """ #???????????# ############?? | | ??????????# "" """ #???????????# ## #?? | | ??????????# "T #######????## ## #?? | | ??????????# "" # """ #????# # #?? | | ??????????# ! ! # """ ###### # """ #?? | | ??????????########### """gg T + """"" #?? | | ????????????????????# gg###### # """"" #?? | | ????????????????????# [@#????# # """"" #?? | | ????????????????????# #????####### """ #?? | | ????????????????????# #??????????###########?? | | ????????????????????#######??????????????????????? | | ?????????????????????????????????????????????????? | | ?????????????????????????????????????????????????? | | ?????????????????????????????????????????????????? | | ?????????????????????????????????????????????????? | | ?????????????????????????????????????????????????? | | ?????????????????????????????????????????????????? | | ?????????????????????????????????????????????????? | | ?????????????????????????????????????????????????? | | ?????????????????????????????????????????????????? | | ?????????????????????????????????????????????????? | | ?????????????????????????????????????????????????? | | ?????????????????????????????????????????????????? | | ?????????????????????????????????????????????????? | | ?????????????????????????????????????????????????? | | ?????????????????????????????????????????????????? | | ?????????????????????????????????????????????????? | | ?????????????????????????????????????????????????? | | ?????????????????????????????????????????????????? | | ?????????????????????????????????????????????????? | | ?????????????????????????????????????????????????? | | ?????????????????????????????????????????????????? | +----------------------------------------------------+ Best States ------------- Heat Dissipation 31 Coolant Potential 65 Energy Generation 21 Energy Capacity 315 Matter Stores 300 Matter Capacity 450 Sight Range 16 Terrain Scan Density 10 Armor Coverage 150 Resistance: KI 20 Power Shielding 66 Evasion (%) 50 Item Schematics ----------------- None Robot Schematics ------------------ None Fabricated ------------ Nothing Alien Tech Used ----------------- None Achievements -------------- Party Time Power Corrupts Tourist Challenges ------------ None Game ------ Seed FrostWeaponVibroblade Manual? 0 Play Time 00:30:23 Cumulative 2.1 hours Start 2024.08.22 @ 20:14:01 End 2024.08.22 @ 21:16:04 Sessions 1 Manual Loads 0 Difficulty Rogue Special Mode None Game No. 7 Rogue 6 Adventurer 1 Explorer 0 Win Type - Total 0 Types 0/0/0/0/0/0/0/0/0 Lore% 1 Gallery% 4 Achievement% 6 Wizard Run 0 Options --------- Layout 2 ASCII 0 Keyboard 1 Movement Arrows Keybinds 0 Fullscreen 1 Font 24/Smallcaps Map View 50x44 Zoom Use 0% Tactical HUD 0 Map Filters NONE Filters NONE Steam 1 RUN: de6087b6-85c0-4585-920e-197dc69911ab